[Event "Titled Tuesday Blitz April 05 Late 2022"]
[White "Vasquez Schroeder, Rodrigo"]
[Black "Dubov, Daniil"]
[WhiteFideId "3400042"]
[BlackFideId "24126055"]
[WhiteElo "2561"]
[BlackElo "2791"]
[Result "1-0"]
[Round "08"]
[TimeControl "180+1"]
[Date "2022.04.05"]
[WhiteClock "0:01:27"]
[BlackClock "0:00:08"]

1. e4 {[%clk 0:03:00]}  c5 {[%clk 0:02:59]} 2. Nf3 {[%clk 0:03:00]}  d6 {[%clk 0:02:58]} 3. d4 {[%clk 0:03:01]}  cxd4 {[%clk 0:02:59]} 4. Nxd4 {[%clk 0:03:01]}  Nf6 {[%clk 0:02:59]} 5. Nc3 {[%clk 0:03:02]}  Nc6 {[%clk 0:03:00]} 6. Bg5 {[%clk 0:03:02]}  g6 {[%clk 0:03:00]} 7. Nb3 {[%clk 0:02:56]}  Bg7 {[%clk 0:02:59]} 8. Be2 {[%clk 0:02:56]}  O-O {[%clk 0:02:58]} 9. Qd2 {[%clk 0:02:56]}  Be6 {[%clk 0:02:55]} 10. Rd1 {[%clk 0:02:52]}  Rc8 {[%clk 0:02:53]} 11. O-O {[%clk 0:02:45]}  Ne5 {[%clk 0:02:52]} 12. Bh6 {[%clk 0:02:42]}  Bxh6 {[%clk 0:02:29]} 13. Qxh6 {[%clk 0:02:41]}  Qb6 {[%clk 0:02:30]} 14. h3 {[%clk 0:02:33]}  Bc4 {[%clk 0:01:56]} 15. Rfe1 {[%clk 0:02:32]}  Bxe2 {[%clk 0:01:53]} 16. Rxe2 {[%clk 0:02:32]}  Nc4 {[%clk 0:01:52]} 17. Nd5 {[%clk 0:02:11]}  Nxd5 {[%clk 0:01:52]} 18. exd5 {[%clk 0:02:12]}  Nxb2 {[%clk 0:01:44]} 19. Rd4 {[%clk 0:02:10]}  Rc4 {[%clk 0:01:43]} 20. Rxc4 {[%clk 0:02:05]}  Nxc4 {[%clk 0:01:42]} 21. Re4 {[%clk 0:02:06]}  Qb4 {[%clk 0:01:21]} 22. Rh4 {[%clk 0:02:04]}  Qe1+ {[%clk 0:01:20]} 23. Kh2 {[%clk 0:02:02]}  Qe5+ {[%clk 0:01:21]} 24. Kg1 {[%clk 0:02:00]}  Qe1+ {[%clk 0:01:17]} 25. Kh2 {[%clk 0:02:00]}  Qe5+ {[%clk 0:01:18]} 26. g3 {[%clk 0:01:55]}  Qg7 {[%clk 0:00:38]} 27. Qxg7+ {[%clk 0:01:55]}  Kxg7 {[%clk 0:00:39]} 28. Rxc4 {[%clk 0:01:55]}  Kf6 {[%clk 0:00:40]} 29. f4 {[%clk 0:01:54]}  b5 {[%clk 0:00:38]} 30. Rc7 {[%clk 0:01:52]}  a5 {[%clk 0:00:38]} 31. Nd4 {[%clk 0:01:48]}  b4 {[%clk 0:00:31]} 32. g4 {[%clk 0:01:48]}  h6 {[%clk 0:00:30]} 33. h4 {[%clk 0:01:43]}  g5 {[%clk 0:00:29]} 34. Kg3 {[%clk 0:01:42]}  a4 {[%clk 0:00:23]} 35. Nf5 {[%clk 0:01:40]}  Rb8 {[%clk 0:00:20]} 36. Nxh6 {[%clk 0:01:34]}  gxf4+ {[%clk 0:00:12]} 37. Kxf4 {[%clk 0:01:34]}  b3 {[%clk 0:00:13]} 38. cxb3 {[%clk 0:01:32]}  axb3 {[%clk 0:00:14]} 39. axb3 {[%clk 0:01:32]}  Rb4+ {[%clk 0:00:14]} 40. Rc4 {[%clk 0:01:30]}  Rxb3 {[%clk 0:00:15]} 41. g5+ {[%clk 0:01:31]}  Kg6 {[%clk 0:00:15]} 42. Nf5 {[%clk 0:01:31]}  Kh5 {[%clk 0:00:10]} 43. Nxe7 {[%clk 0:01:27]}  Kxh4 {[%clk 0:00:10]} 44. Nf5+ {[%clk 0:01:28]}  Kh5 {[%clk 0:00:10]} 45. Nxd6 {[%clk 0:01:28]}  Kg6 {[%clk 0:00:09]} 46. Rc6 {[%clk 0:01:28]}  Rb4+ {[%clk 0:00:09]} 47. Ne4+ {[%clk 0:01:28]}  Kg7 {[%clk 0:00:08]} 48. Ke5 {[%clk 0:01:27]} 1-0


[Site "https://www.chess.com"]

[Event "Titled Tuesday Blitz April 05 Late 2022"]
[White "Villegas, Pierre"]
[Black "Do Valle Cardoso, Lucas"]
[WhiteFideId "654183"]
[BlackFideId "2163144"]
[WhiteElo "2386"]
[BlackElo "2331"]
[Result "1-0"]
[Round "08"]
[TimeControl "180+1"]
[Date "2022.04.05"]
[WhiteClock "0:00:49"]
[BlackClock "0:00:33"]

1. d4 {[%clk 0:03:00]}  d5 {[%clk 0:02:56]} 2. c4 {[%clk 0:03:00]}  dxc4 {[%clk 0:02:57]} 3. e3 {[%clk 0:03:00]}  e5 {[%clk 0:02:57]} 4. Bxc4 {[%clk 0:03:00]}  exd4 {[%clk 0:02:55]} 5. exd4 {[%clk 0:03:01]}  Nf6 {[%clk 0:02:54]} 6. Nf3 {[%clk 0:03:01]}  Bd6 {[%clk 0:02:54]} 7. Qe2+ {[%clk 0:03:01]}  Qe7 {[%clk 0:02:53]} 8. Qxe7+ {[%clk 0:03:01]}  Bxe7 {[%clk 0:02:54]} 9. O-O {[%clk 0:03:01]}  O-O {[%clk 0:02:53]} 10. Re1 {[%clk 0:03:00]}  Bd6 {[%clk 0:02:53]} 11. Bg5 {[%clk 0:03:00]}  Nc6 {[%clk 0:02:50]} 12. Nc3 {[%clk 0:02:52]}  a6 {[%clk 0:02:48]} 13. Bxf6 {[%clk 0:02:43]}  gxf6 {[%clk 0:02:45]} 14. Ne4 {[%clk 0:02:43]}  Kg7 {[%clk 0:02:43]} 15. Nxd6 {[%clk 0:02:31]}  cxd6 {[%clk 0:02:43]} 16. h3 {[%clk 0:02:28]}  Bd7 {[%clk 0:02:41]} 17. a3 {[%clk 0:02:17]}  Rac8 {[%clk 0:02:39]} 18. Bd5 {[%clk 0:02:16]}  Rfe8 {[%clk 0:02:39]} 19. Kf1 {[%clk 0:02:06]}  Be6 {[%clk 0:02:38]} 20. Bxc6 {[%clk 0:01:54]}  bxc6 {[%clk 0:02:31]} 21. Nd2 {[%clk 0:01:47]}  Bd5 {[%clk 0:02:29]} 22. f3 {[%clk 0:01:41]}  Rxe1+ {[%clk 0:02:22]} 23. Rxe1 {[%clk 0:01:42]}  Rb8 {[%clk 0:02:22]} 24. b4 {[%clk 0:01:42]}  a5 {[%clk 0:02:22]} 25. Rb1 {[%clk 0:01:41]}  axb4 {[%clk 0:02:21]} 26. axb4 {[%clk 0:01:42]}  f5 {[%clk 0:02:03]} 27. Ke2 {[%clk 0:01:37]}  f4 {[%clk 0:01:59]} 28. Ne4 {[%clk 0:01:31]}  Rd8 {[%clk 0:01:40]} 29. Kd3 {[%clk 0:01:25]}  Kg6 {[%clk 0:01:21]} 30. b5 {[%clk 0:01:22]}  cxb5 {[%clk 0:01:10]} 31. Rxb5 {[%clk 0:01:23]}  Be6 {[%clk 0:01:04]} 32. Rg5+ {[%clk 0:01:03]}  Kh6 {[%clk 0:01:04]} 33. h4 {[%clk 0:01:03]}  d5 {[%clk 0:00:41]} 34. Nf6 {[%clk 0:01:01]}  Bf5+ {[%clk 0:00:27]} 35. Rxf5 {[%clk 0:01:00]}  Kg6 {[%clk 0:00:28]} 36. Rxf4 {[%clk 0:01:00]}  h5 {[%clk 0:00:24]} 37. g4 {[%clk 0:00:57]}  hxg4 {[%clk 0:00:24]} 38. fxg4 {[%clk 0:00:55]}  Ra8 {[%clk 0:00:25]} 39. Nxd5 {[%clk 0:00:55]}  Ra3+ {[%clk 0:00:26]} 40. Ke4 {[%clk 0:00:55]}  Rh3 {[%clk 0:00:26]} 41. Rf6+ {[%clk 0:00:53]}  Kg7 {[%clk 0:00:27]} 42. h5 {[%clk 0:00:48]}  Rh1 {[%clk 0:00:28]} 43. Rf4 {[%clk 0:00:48]}  Re1+ {[%clk 0:00:29]} 44. Ne3 {[%clk 0:00:48]}  Rh1 {[%clk 0:00:30]} 45. d5 {[%clk 0:00:48]}  Ra1 {[%clk 0:00:29]} 46. Rf5 {[%clk 0:00:47]}  Ra4+ {[%clk 0:00:30]} 47. Kf3 {[%clk 0:00:48]}  f6 {[%clk 0:00:30]} 48. Rf4 {[%clk 0:00:48]}  Ra3 {[%clk 0:00:30]} 49. Rd4 {[%clk 0:00:48]}  Kh6 {[%clk 0:00:31]} 50. d6 {[%clk 0:00:48]}  Kg5 {[%clk 0:00:32]} 51. d7 {[%clk 0:00:48]}  f5 {[%clk 0:00:32]} 52. d8=Q+ {[%clk 0:00:47]}  Kh6 {[%clk 0:00:33]} 53. Qf6+ {[%clk 0:00:47]}  Kh7 {[%clk 0:00:33]} 54. Rd7+ {[%clk 0:00:48]}  Kg8 {[%clk 0:00:33]} 55. Qd8# {[%clk 0:00:49]} 1-0


[Site "https://www.chess.com"]

[Event "Titled Tuesday Blitz April 05 Late 2022"]
[White "Vusatiuk, Vladimir"]
[Black "Ovetchkin, Roman"]
[WhiteFideId "14118610"]
[BlackFideId "4119991"]
[WhiteElo "2157"]
[BlackElo "2409"]
[Result "1/2-1/2"]
[Round "08"]
[TimeControl "180+1"]
[Date "2022.04.05"]
[WhiteClock "0:00:07"]
[BlackClock "0:01:07"]

1. e4 {[%clk 0:02:59]}  c6 {[%clk 0:03:00]} 2. Ne2 {[%clk 0:02:54]}  d5 {[%clk 0:03:01]} 3. e5 {[%clk 0:02:53]}  Bf5 {[%clk 0:03:01]} 4. Ng3 {[%clk 0:02:51]}  Bg6 {[%clk 0:03:01]} 5. h4 {[%clk 0:02:50]}  h5 {[%clk 0:03:00]} 6. Be2 {[%clk 0:02:47]}  e6 {[%clk 0:03:00]} 7. d4 {[%clk 0:02:45]}  c5 {[%clk 0:02:59]} 8. c3 {[%clk 0:02:42]}  Nc6 {[%clk 0:02:59]} 9. Nxh5 {[%clk 0:02:33]}  Bxh5 {[%clk 0:02:57]} 10. Bxh5 {[%clk 0:02:32]}  g6 {[%clk 0:02:52]} 11. Bf3 {[%clk 0:02:19]}  Rxh4 {[%clk 0:02:49]} 12. Rxh4 {[%clk 0:02:06]}  Qxh4 {[%clk 0:02:48]} 13. g3 {[%clk 0:02:06]}  Qh2 {[%clk 0:02:43]} 14. Be3 {[%clk 0:01:52]}  Bh6 {[%clk 0:02:38]} 15. Ke2 {[%clk 0:01:31]}  Bxe3 {[%clk 0:02:34]} 16. Kxe3 {[%clk 0:01:32]}  cxd4+ {[%clk 0:02:18]} 17. cxd4 {[%clk 0:01:31]}  Nge7 {[%clk 0:02:18]} 18. g4 {[%clk 0:01:29]}  Qh6+ {[%clk 0:02:16]} 19. Ke2 {[%clk 0:01:17]}  Qf4 {[%clk 0:02:17]} 20. Nd2 {[%clk 0:00:54]}  Nxd4+ {[%clk 0:02:13]} 21. Kf1 {[%clk 0:00:54]}  Nec6 {[%clk 0:02:08]} 22. b4 {[%clk 0:00:47]}  Nxe5 {[%clk 0:02:05]} 23. Be2 {[%clk 0:00:23]}  Rc8 {[%clk 0:01:48]} 24. Qa4+ {[%clk 0:00:11]}  Kf8 {[%clk 0:01:44]} 25. Qd1 {[%clk 0:00:11]}  Kg7 {[%clk 0:01:40]} 26. Rc1 {[%clk 0:00:10]}  Rxc1 {[%clk 0:01:38]} 27. Qxc1 {[%clk 0:00:11]}  Nxe2 {[%clk 0:01:38]} 28. Kxe2 {[%clk 0:00:12]}  Qxg4+ {[%clk 0:01:38]} 29. Kf1 {[%clk 0:00:08]}  Qxb4 {[%clk 0:01:32]} 30. Qa1 {[%clk 0:00:06]}  Qf4 {[%clk 0:01:24]} 31. Nf3 {[%clk 0:00:05]}  Qxf3 {[%clk 0:01:24]} 32. Qxe5+ {[%clk 0:00:06]}  Qf6 {[%clk 0:01:24]} 33. Qc7 {[%clk 0:00:06]}  Qa1+ {[%clk 0:01:24]} 34. Kg2 {[%clk 0:00:07]}  Qxa2 {[%clk 0:01:23]} 35. Qe5+ {[%clk 0:00:07]}  Kg8 {[%clk 0:01:20]} 36. Qb8+ {[%clk 0:00:07]}  Kh7 {[%clk 0:01:18]} 37. Qh2+ {[%clk 0:00:08]}  Kg7 {[%clk 0:01:15]} 38. Qe5+ {[%clk 0:00:08]}  Kf8 {[%clk 0:01:14]} 39. Qb8+ {[%clk 0:00:07]}  Kg7 {[%clk 0:01:07]} 40. Qe5+ {[%clk 0:00:07]} 1/2-1/2


[Site "https://www.chess.com"]

[Event "Titled Tuesday Blitz April 05 Late 2022"]
[White "Zhigalko, Sergei"]
[Black "Barbosa, Evandro Amorim"]
[WhiteFideId "13502956"]
[BlackFideId "2115824"]
[WhiteElo "2662"]
[BlackElo "2454"]
[Result "1-0"]
[Round "08"]
[TimeControl "180+1"]
[Date "2022.04.05"]
[WhiteClock "0:00:06"]
[BlackClock "0:00:02"]

1. e4 {[%clk 0:03:00]}  c5 {[%clk 0:03:00]} 2. Nf3 {[%clk 0:03:00]}  e6 {[%clk 0:03:00]} 3. c3 {[%clk 0:03:00]}  Nf6 {[%clk 0:03:00]} 4. e5 {[%clk 0:03:01]}  Nd5 {[%clk 0:03:00]} 5. Bc4 {[%clk 0:03:01]}  d6 {[%clk 0:03:01]} 6. d4 {[%clk 0:03:01]}  cxd4 {[%clk 0:03:01]} 7. cxd4 {[%clk 0:03:02]}  Be7 {[%clk 0:03:01]} 8. O-O {[%clk 0:03:03]}  O-O {[%clk 0:03:01]} 9. Bd2 {[%clk 0:03:03]}  b6 {[%clk 0:03:01]} 10. Qe2 {[%clk 0:03:02]}  Bb7 {[%clk 0:02:59]} 11. Nc3 {[%clk 0:03:02]}  Nxc3 {[%clk 0:02:57]} 12. Bxc3 {[%clk 0:03:03]}  Nd7 {[%clk 0:02:54]} 13. Rfe1 {[%clk 0:03:03]}  dxe5 {[%clk 0:02:41]} 14. dxe5 {[%clk 0:03:01]}  Nc5 {[%clk 0:02:41]} 15. Rad1 {[%clk 0:02:37]}  Qc7 {[%clk 0:02:40]} 16. Rd4 {[%clk 0:02:38]}  Rfd8 {[%clk 0:02:34]} 17. Rg4 {[%clk 0:02:38]}  g6 {[%clk 0:02:34]} 18. h4 {[%clk 0:02:35]}  Rac8 {[%clk 0:02:31]} 19. h5 {[%clk 0:02:24]}  Ne4 {[%clk 0:02:20]} 20. Bxe6 {[%clk 0:01:53]}  fxe6 {[%clk 0:02:04]} 21. hxg6 {[%clk 0:01:53]}  hxg6 {[%clk 0:01:31]} 22. Rxe4 {[%clk 0:01:33]}  Bxe4 {[%clk 0:01:30]} 23. Qxe4 {[%clk 0:01:34]}  Kg7 {[%clk 0:01:29]} 24. Nd4 {[%clk 0:01:18]}  Qc4 {[%clk 0:01:01]} 25. Re3 {[%clk 0:00:39]}  Rxd4 {[%clk 0:00:42]} 26. Qxd4 {[%clk 0:00:18]}  Qxd4 {[%clk 0:00:40]} 27. Bxd4 {[%clk 0:00:19]}  Rc1+ {[%clk 0:00:27]} 28. Kh2 {[%clk 0:00:19]}  Rd1 {[%clk 0:00:27]} 29. Bc3 {[%clk 0:00:15]}  Bc5 {[%clk 0:00:26]} 30. Rf3 {[%clk 0:00:10]}  Be7 {[%clk 0:00:16]} 31. Rf4 {[%clk 0:00:08]}  Ra1 {[%clk 0:00:12]} 32. a3 {[%clk 0:00:08]}  Bc5 {[%clk 0:00:09]} 33. Rf6 {[%clk 0:00:06]}  a5 {[%clk 0:00:09]} 34. Kg3 {[%clk 0:00:06]}  Rc1 {[%clk 0:00:06]} 35. Rxe6 {[%clk 0:00:05]}  Bxa3 {[%clk 0:00:06]} 36. Rxb6 {[%clk 0:00:05]}  Bc5 {[%clk 0:00:04]} 37. Rb5 {[%clk 0:00:05]}  Ba7 {[%clk 0:00:02]} 38. Rxa5 {[%clk 0:00:05]}  Bb6 {[%clk 0:00:02]} 39. Rb5 {[%clk 0:00:05]}  Bd8 {[%clk 0:00:02]} 40. Rb7+ {[%clk 0:00:05]}  Kh6 {[%clk 0:00:02]} 41. e6 {[%clk 0:00:06]} 1-0


[Site "https://www.chess.com"]

[Event "Titled Tuesday Blitz April 05 Late 2022"]
[White "Derraugh, Geordie"]
[Black "Ashiev, Eduard"]
[WhiteFideId "2603950"]
[BlackFideId "4130090"]
[WhiteElo "2116"]
[BlackElo "2004"]
[Result "1-0"]
[Round "09"]
[TimeControl "180+1"]
[Date "2022.04.06"]
[WhiteClock "0:01:18"]
[BlackClock "0:00:01"]

1. e4 {[%clk 0:03:00]}  e5 {[%clk 0:03:00]} 2. Nf3 {[%clk 0:03:00]}  Nc6 {[%clk 0:03:00]} 3. d4 {[%clk 0:03:00]}  exd4 {[%clk 0:02:59]} 4. Bc4 {[%clk 0:03:01]}  Nf6 {[%clk 0:02:59]} 5. e5 {[%clk 0:03:00]}  d5 {[%clk 0:02:59]} 6. Bb5 {[%clk 0:03:01]}  Ne4 {[%clk 0:02:59]} 7. Nxd4 {[%clk 0:03:01]}  Bd7 {[%clk 0:02:59]} 8. Bxc6 {[%clk 0:03:01]}  bxc6 {[%clk 0:02:59]} 9. O-O {[%clk 0:03:02]}  c5 {[%clk 0:03:00]} 10. Nb3 {[%clk 0:03:00]}  c6 {[%clk 0:02:59]} 11. f3 {[%clk 0:02:47]}  Ng5 {[%clk 0:02:58]} 12. f4 {[%clk 0:02:45]}  Ne4 {[%clk 0:02:58]} 13. N1d2 {[%clk 0:02:44]}  c4 {[%clk 0:02:35]} 14. Nxe4 {[%clk 0:02:43]}  cxb3 {[%clk 0:02:33]} 15. Ng5 {[%clk 0:02:27]}  Bc5+ {[%clk 0:02:19]} 16. Kh1 {[%clk 0:02:27]}  Bf5 {[%clk 0:02:04]} 17. axb3 {[%clk 0:02:23]}  h6 {[%clk 0:01:50]} 18. Nf3 {[%clk 0:02:23]}  O-O {[%clk 0:01:38]} 19. c3 {[%clk 0:02:23]}  f6 {[%clk 0:01:30]} 20. b4 {[%clk 0:02:22]}  Bb6 {[%clk 0:01:28]} 21. Nd4 {[%clk 0:02:17]}  Be4 {[%clk 0:01:18]} 22. Ne6 {[%clk 0:02:16]}  Qe7 {[%clk 0:01:13]} 23. Nxf8 {[%clk 0:02:16]}  Rxf8 {[%clk 0:01:13]} 24. exf6 {[%clk 0:02:09]}  Qxf6 {[%clk 0:01:08]} 25. Qg4 {[%clk 0:02:05]}  Bf5 {[%clk 0:00:47]} 26. Qg3 {[%clk 0:02:04]}  Be4 {[%clk 0:00:38]} 27. Be3 {[%clk 0:02:01]}  d4 {[%clk 0:00:26]} 28. Bxd4 {[%clk 0:01:55]}  Bxd4 {[%clk 0:00:26]} 29. cxd4 {[%clk 0:01:55]}  Qxd4 {[%clk 0:00:26]} 30. Rfd1 {[%clk 0:01:51]}  Qf6 {[%clk 0:00:16]} 31. Rxa7 {[%clk 0:01:48]}  Bd5 {[%clk 0:00:16]} 32. h3 {[%clk 0:01:44]}  Re8 {[%clk 0:00:15]} 33. Rd2 {[%clk 0:01:33]}  Kh7 {[%clk 0:00:06]} 34. b5 {[%clk 0:01:31]}  Re4 {[%clk 0:00:02]} 35. bxc6 {[%clk 0:01:20]}  Bxc6 {[%clk 0:00:01]} 36. Rd6 {[%clk 0:01:18]} 1-0


[Site "https://www.chess.com"]

[Event "Titled Tuesday Blitz April 05 Late 2022"]
[White "Foisor, Sabina-Francesca"]
[Black "Kozin, Yuri"]
[WhiteFideId "1212915"]
[BlackFideId "4129920"]
[WhiteElo "2351"]
[BlackElo "2511"]
[Result "1-0"]
[Round "09"]
[TimeControl "180+1"]
[Date "2022.04.06"]
[WhiteClock "0:00:10"]
[BlackClock "0:00:05"]

1. d4 {[%clk 0:03:00]}  d5 {[%clk 0:02:59]} 2. c4 {[%clk 0:02:59]}  c6 {[%clk 0:02:58]} 3. Nf3 {[%clk 0:02:59]}  Nf6 {[%clk 0:02:58]} 4. Nbd2 {[%clk 0:02:59]}  Bf5 {[%clk 0:02:56]} 5. Nh4 {[%clk 0:02:58]}  Bg6 {[%clk 0:02:53]} 6. Qb3 {[%clk 0:02:56]}  Qc7 {[%clk 0:02:53]} 7. Nxg6 {[%clk 0:02:46]}  hxg6 {[%clk 0:02:52]} 8. g3 {[%clk 0:02:45]}  e6 {[%clk 0:02:51]} 9. Bg2 {[%clk 0:02:45]}  Nbd7 {[%clk 0:02:50]} 10. O-O {[%clk 0:02:44]}  Be7 {[%clk 0:02:49]} 11. e4 {[%clk 0:02:44]}  dxe4 {[%clk 0:02:49]} 12. Nxe4 {[%clk 0:02:45]}  Nxe4 {[%clk 0:02:47]} 13. Bxe4 {[%clk 0:02:46]}  Nf6 {[%clk 0:02:46]} 14. Bg2 {[%clk 0:02:45]}  Rd8 {[%clk 0:02:45]} 15. Rd1 {[%clk 0:02:42]}  O-O {[%clk 0:02:43]} 16. Bf4 {[%clk 0:02:34]}  Bd6 {[%clk 0:02:42]} 17. Bg5 {[%clk 0:02:30]}  Be7 {[%clk 0:02:40]} 18. Rd3 {[%clk 0:02:14]}  Rd7 {[%clk 0:02:37]} 19. Rad1 {[%clk 0:02:03]}  Rfd8 {[%clk 0:02:35]} 20. Bxf6 {[%clk 0:01:29]}  Bxf6 {[%clk 0:02:36]} 21. d5 {[%clk 0:01:30]}  cxd5 {[%clk 0:02:27]} 22. cxd5 {[%clk 0:01:31]}  e5 {[%clk 0:02:02]} 23. h4 {[%clk 0:01:25]}  Rd6 {[%clk 0:01:57]} 24. Rc3 {[%clk 0:01:18]}  Qe7 {[%clk 0:01:56]} 25. Be4 {[%clk 0:01:14]}  Rb6 {[%clk 0:01:43]} 26. Qc2 {[%clk 0:01:10]}  Rb4 {[%clk 0:01:34]} 27. Rc7 {[%clk 0:01:00]}  Qd6 {[%clk 0:01:31]} 28. Rc4 {[%clk 0:00:55]}  Rxc4 {[%clk 0:01:22]} 29. Qxc4 {[%clk 0:00:56]}  Be7 {[%clk 0:01:22]} 30. a3 {[%clk 0:00:46]}  f5 {[%clk 0:01:15]} 31. Bg2 {[%clk 0:00:44]}  Bf6 {[%clk 0:01:13]} 32. b4 {[%clk 0:00:43]}  e4 {[%clk 0:01:11]} 33. Bf1 {[%clk 0:00:32]}  e3 {[%clk 0:01:10]} 34. Qe2 {[%clk 0:00:29]}  Re8 {[%clk 0:01:03]} 35. f4 {[%clk 0:00:29]}  a5 {[%clk 0:00:53]} 36. Bg2 {[%clk 0:00:27]}  axb4 {[%clk 0:00:50]} 37. axb4 {[%clk 0:00:28]}  Bc3 {[%clk 0:00:50]} 38. b5 {[%clk 0:00:27]}  b6 {[%clk 0:00:46]} 39. Rd3 {[%clk 0:00:27]}  Bb4 {[%clk 0:00:45]} 40. Kh2 {[%clk 0:00:26]}  Bc5 {[%clk 0:00:45]} 41. h5 {[%clk 0:00:24]}  gxh5 {[%clk 0:00:41]} 42. Qxh5 {[%clk 0:00:25]}  Qh6 {[%clk 0:00:42]} 43. Qxh6 {[%clk 0:00:25]}  gxh6 {[%clk 0:00:42]} 44. Bf3 {[%clk 0:00:19]}  e2 {[%clk 0:00:42]} 45. Bxe2 {[%clk 0:00:19]}  Rxe2+ {[%clk 0:00:43]} 46. Kh1 {[%clk 0:00:18]}  Re1+ {[%clk 0:00:43]} 47. Kg2 {[%clk 0:00:17]}  Kf7 {[%clk 0:00:40]} 48. d6 {[%clk 0:00:17]}  Re8 {[%clk 0:00:39]} 49. Rd5 {[%clk 0:00:15]}  Kf6 {[%clk 0:00:36]} 50. d7 {[%clk 0:00:15]}  Rd8 {[%clk 0:00:36]} 51. Kf3 {[%clk 0:00:16]}  Ke6 {[%clk 0:00:36]} 52. Re5+ {[%clk 0:00:16]}  Kf6 {[%clk 0:00:28]} 53. Rd5 {[%clk 0:00:16]}  Be7 {[%clk 0:00:20]} 54. g4 {[%clk 0:00:11]}  fxg4+ {[%clk 0:00:20]} 55. Kxg4 {[%clk 0:00:12]}  Ke6 {[%clk 0:00:20]} 56. Rh5 {[%clk 0:00:12]}  Bf8 {[%clk 0:00:20]} 57. Re5+ {[%clk 0:00:10]}  Kxd7 {[%clk 0:00:18]} 58. Rf5 {[%clk 0:00:07]}  Ke8 {[%clk 0:00:17]} 59. Rf6 {[%clk 0:00:07]}  Bg7 {[%clk 0:00:15]} 60. Rxb6 {[%clk 0:00:07]}  Kf7 {[%clk 0:00:15]} 61. Rb7+ {[%clk 0:00:07]}  Kg8 {[%clk 0:00:14]} 62. b6 {[%clk 0:00:07]}  Rd1 {[%clk 0:00:13]} 63. Rc7 {[%clk 0:00:07]}  Rb1 {[%clk 0:00:13]} 64. b7 {[%clk 0:00:07]}  Kh7 {[%clk 0:00:13]} 65. f5 {[%clk 0:00:06]}  Rb4+ {[%clk 0:00:13]} 66. Kf3 {[%clk 0:00:05]}  Rb3+ {[%clk 0:00:11]} 67. Ke4 {[%clk 0:00:06]}  Rb4+ {[%clk 0:00:11]} 68. Kd3 {[%clk 0:00:07]}  Rb6 {[%clk 0:00:11]} 69. Kc4 {[%clk 0:00:06]}  Kh8 {[%clk 0:00:11]} 70. Rc8+ {[%clk 0:00:06]}  Kh7 {[%clk 0:00:11]} 71. b8=Q {[%clk 0:00:07]}  Rxb8 {[%clk 0:00:11]} 72. Rxb8 {[%clk 0:00:08]}  h5 {[%clk 0:00:12]} 73. Rb7 {[%clk 0:00:08]}  Kh6 {[%clk 0:00:12]} 74. Kd5 {[%clk 0:00:09]}  h4 {[%clk 0:00:12]} 75. Ke6 {[%clk 0:00:10]}  h3 {[%clk 0:00:10]} 76. f6 {[%clk 0:00:10]}  Bxf6 {[%clk 0:00:09]} 77. Kxf6 {[%clk 0:00:11]}  Kh5 {[%clk 0:00:10]} 78. Kf5 {[%clk 0:00:09]}  Kh4 {[%clk 0:00:09]} 79. Kf4 {[%clk 0:00:09]}  h2 {[%clk 0:00:05]} 80. Rh7# {[%clk 0:00:10]} 1-0


[Site "https://www.chess.com"]

[Event "Titled Tuesday Blitz April 05 Late 2022"]
[White "Galego, Luis"]
[Black "Bas Mas, Jose Joaquin"]
[WhiteFideId "1900072"]
[BlackFideId "22219064"]
[WhiteElo "2539"]
[BlackElo "2339"]
[Result "1-0"]
[Round "09"]
[TimeControl "180+1"]
[Date "2022.04.06"]
[WhiteClock "0:00:56"]
[BlackClock "0:00:16"]

1. d4 {[%clk 0:02:56]}  f5 {[%clk 0:02:59]} 2. c4 {[%clk 0:02:55]}  Nf6 {[%clk 0:02:59]} 3. Nc3 {[%clk 0:02:56]}  e6 {[%clk 0:03:00]} 4. g3 {[%clk 0:02:56]}  Bb4 {[%clk 0:03:00]} 5. Bg2 {[%clk 0:02:56]}  Bxc3+ {[%clk 0:03:00]} 6. bxc3 {[%clk 0:02:55]}  O-O {[%clk 0:03:01]} 7. c5 {[%clk 0:02:55]}  Ne4 {[%clk 0:02:51]} 8. Qc2 {[%clk 0:02:49]}  Qf6 {[%clk 0:02:40]} 9. Nf3 {[%clk 0:02:40]}  d6 {[%clk 0:02:20]} 10. cxd6 {[%clk 0:02:38]}  cxd6 {[%clk 0:02:21]} 11. O-O {[%clk 0:02:37]}  Bd7 {[%clk 0:02:17]} 12. Ba3 {[%clk 0:02:36]}  Bc6 {[%clk 0:02:16]} 13. c4 {[%clk 0:02:29]}  Na6 {[%clk 0:02:06]} 14. Rad1 {[%clk 0:02:12]}  Rac8 {[%clk 0:02:04]} 15. Qb3 {[%clk 0:02:08]}  Rfe8 {[%clk 0:01:53]} 16. e3 {[%clk 0:02:08]}  b6 {[%clk 0:01:42]} 17. Bb2 {[%clk 0:02:05]}  Qf7 {[%clk 0:01:20]} 18. Qa3 {[%clk 0:01:52]}  Bb7 {[%clk 0:01:07]} 19. Rc1 {[%clk 0:01:51]}  h6 {[%clk 0:00:55]} 20. Rfd1 {[%clk 0:01:42]}  Kh7 {[%clk 0:00:54]} 21. Nd2 {[%clk 0:01:33]}  Nxd2 {[%clk 0:00:52]} 22. Rxd2 {[%clk 0:01:31]}  Bxg2 {[%clk 0:00:51]} 23. Kxg2 {[%clk 0:01:32]}  Qb7+ {[%clk 0:00:43]} 24. Kg1 {[%clk 0:01:29]}  d5 {[%clk 0:00:40]} 25. cxd5 {[%clk 0:01:27]}  Rxc1+ {[%clk 0:00:35]} 26. Bxc1 {[%clk 0:01:27]}  exd5 {[%clk 0:00:36]} 27. Qd3 {[%clk 0:01:24]}  g6 {[%clk 0:00:28]} 28. h4 {[%clk 0:01:24]}  h5 {[%clk 0:00:25]} 29. Rc2 {[%clk 0:01:18]}  Re7 {[%clk 0:00:20]} 30. Ba3 {[%clk 0:01:17]}  Rd7 {[%clk 0:00:19]} 31. Qb5 {[%clk 0:01:07]}  Nb8 {[%clk 0:00:18]} 32. Qb4 {[%clk 0:01:04]}  Rc7 {[%clk 0:00:15]} 33. Rxc7+ {[%clk 0:01:01]}  Qxc7 {[%clk 0:00:16]} 34. Qf8 {[%clk 0:01:00]}  Nc6 {[%clk 0:00:16]} 35. Bd6 {[%clk 0:00:59]}  Qd7 {[%clk 0:00:16]} 36. Bf4 {[%clk 0:00:58]}  Nd8 {[%clk 0:00:14]} 37. Qh6+ {[%clk 0:00:57]}  Kg8 {[%clk 0:00:15]} 38. Qxg6+ {[%clk 0:00:58]}  Kf8 {[%clk 0:00:15]} 39. Qxh5 {[%clk 0:00:57]}  Qf7 {[%clk 0:00:15]} 40. Qh8+ {[%clk 0:00:57]}  Ke7 {[%clk 0:00:15]} 41. Bg5+ {[%clk 0:00:56]}  Kd7 {[%clk 0:00:16]} 42. Qxd8+ {[%clk 0:00:56]} 1-0


[Site "https://www.chess.com"]